Workbook

Sheet Ausdehnung
B1: Designed by 3M (Schweiz) GmbH , Peter Rütimann | N1: Materialien | O1: Wärmeausd. | P1: IF Material 1 | Q1: IF Material 2
N2: PTFE | O2: 100 | P2: =IF(B10="PTFE",O2,0) -> 0 | Q2: =IF(B13="PTFE",O2,0) -> 0
B3: Berechnungen von linearen Materialausdehnungen | N3: PTFCE | O3: 60 | P3: =IF(B10="PTFCE",O3,0) -> 0 | Q3: =IF(B13="PTFCE",O3,0) -> 0
N4: PP | O4: 150 | P4: =IF(B10="PP",O4,0) -> 0 | Q4: =IF(B13="PP",O4,0) -> 0
B5: Eingabefelder | D5: Dehnungs- | F5: Eingabe des | H5: Eingabe der | N5: PE | O5: 250 | P5: =IF(B10="PE",O5,0) -> 0 | Q5: =IF(B13="PE",O5,0) -> 0
B6: Resultatfelder | D6: faktor | F6: Temperaturunter- | H6: längsten linearen | N6: PMMA | O6: 85 | P6: =IF(B10="PMMA",O6,0) -> 0 | Q6: =IF(B13="PMMA",O6,0) -> 0
D7: gegebener Wert | F7: schiedes ab | H7: Baulänge | N7: Corean | O7: 39 | P7: =IF(B10="Corean",O7,0) -> 0 | Q7: =IF(B13="Corean",O7,0) -> 0
F8: Verarbeitungstemperatur | N8: Forex 1-4mm | O8: 56 | P8: =IF(B10="Forex 1-4mm",O8,0) -> 0 | Q8: =IF(B13="Forex 1-4mm",O8,0) -> 0
B9: Material 1 wählen | F9: in °Celsius | H9: in Millimeter | N9: Forex 5-19mm | O9: 66 | P9: =IF(B10="Forex 5-19mm",O9,0) -> 0 | Q9: =IF(B13="Forex 5-19mm",O9,0) -> 0
B10: NICKEL | D10: =$P$95 -> 13.4 | E10: 1e-06 | H10: 2000 | N10: PVC U hart | O10: 100 | P10: =IF(B10="PVC U hart",O10,0) -> 0 | Q10: =IF(B13="PVC U hart",O10,0) -> 0
N11: PVC P weich | O11: 200 | P11: =IF(B10="PVC P weich",O11,0) -> 0 | Q11: =IF(B13="PVC P weich",O11,0) -> 0
B12: Material 2 wählen | N12: EVA | O12: 200 | P12: =IF(B10="EVA",O12,0) -> 0 | Q12: =IF(B13="EVA",O12,0) -> 0
B13: CHROMNICKELSTAHL | D13: =$Q$95 -> 17 | N13: SI | O13: 50 | P13: =IF(B10="SI",O13,0) -> 0 | Q13: =IF(B13="SI",O13,0) -> 0
N14: EPOXY | O14: 35 | P14: =IF(B10="EPOXY",O14,0) -> 0 | Q14: =IF(B13="EPOXY",O14,0) -> 0
B15: Ausdehnungen der Materialien in mm von | F15: Ausdehnungs-Differenz in mm | N15: CA | O15: 120 | P15: =IF(B10="CA",O15,0) -> 0 | Q15: =IF(B13="CA",O15,0) -> 0
B16: =+B10 -> NICKEL | C16: = | D16: =$O$98 -> 0 | F16: =$P$100 -> 0 | N16: PA6,PA6,6 | O16: 80 | P16: =IF(B10="PA6,PA6,6",O16,0) -> 0 | Q16: =IF(B13="PA6,PA6,6",O16,0) -> 0
N17: PI,Kapton | O17: 60 | P17: =IF(B10="PI,KAPTON",O17,0) -> 0 | Q17: =IF(B13="PI,KAPTON",O17,0) -> 0
B18: =+B13 -> CHROMNICKELSTAHL | C18: = | D18: =$O$99 -> 0 | N18: ABS | O18: 110 | P18: =IF(B10="ABS",O18,0) -> 0 | Q18: =IF(B13="ABS",O18,0) -> 0
B19: *Alle Dap.= Daplen + Luran S 778T von -30°C bis +80°C | N19: ABS Verchromt | O19: 30 | P19: =IF(B10="ABS Verchromt",O19,0) -> 0 | Q19: =IF(B13="ABS Verchromt",O19,0) -> 0
B20: Created December 2000, last update Aug. 2015, Version 2.2 © 3M 2015 | N20: ABS/PC Verchromt | O20: 30 | P20: =IF(B10="ABS/PC Verchromt",O20,0) -> 0 | Q20: =IF(B13="ABS/PC Verchromt",O20,0) -> 0
N21: SAN | O21: 80 | P21: =IF(B10="SAN",O21,0) -> 0 | Q21: =IF(B13="SAN",O21,0) -> 0
N22: BASF ASA Luran S 778 T | O22: 80 | P22: =IF(B10="BASF ASA Luran S 778 T",O22,0) -> 0 | Q22: =IF(B13="BASF ASA Luran S 778 T",O22,0) -> 0
N23: POM | O23: 110 | P23: =IF(B10="POM",O23,0) -> 0 | Q23: =IF(B13="POM",O23,0) -> 0
N24: PS | O24: 70 | P24: =IF(B10="PS",O24,0) -> 0 | Q24: =IF(B13="PS",O24,0) -> 0
N25: EPS | O25: 70 | P25: =IF(B10="EPS",O25,0) -> 0 | Q25: =IF(B13="EPS",O25,0) -> 0
N26: EPS-PPO | O26: 50 | P26: =IF(B10="EPS-PPO",O26,0) -> 0 | Q26: =IF(B13="EPS-PPO",O26,0) -> 0
N27: EPP | O27: 100 | P27: =IF(B10="EPP",O27,0) -> 0 | Q27: =IF(B13="EPP",O27,0) -> 0
N28: PC | O28: 92 | P28: =IF(B10="PC",O28,0) -> 0 | Q28: =IF(B13="PC",O28,0) -> 0
N29: PET | O29: 70 | P29: =IF(B10="PET",O29,0) -> 0 | Q29: =IF(B13="PET",O29,0) -> 0
N30: Dap.ED230HPPPEPDMT20 | O30: 52 | P30: =IF(B10="Dap.ED230HPPPEPDMT20",O30,0) -> 0 | Q30: =IF(B13="Dap.ED230HPPPEPDMT20",O30,0) -> 0
N31: Dap.EH104AEPPEPDMT10 | O31: 68 | P31: =IF(B10="Dap.EH104AEPPEPDMT10",O31,0) -> 0 | Q31: =IF(B13="Dap.EH104AEPPEPDMT10",O31,0) -> 0
N32: Dap.L134HPPPEPDMT15 | O32: 55 | P32: =IF(B10="Dap.L134HPPPEPDMT15",O32,0) -> 0 | Q32: =IF(B13="Dap.L134HPPPEPDMT15",O32,0) -> 0
N33: Dap.ED117AEPPEPDMT10 | O33: 80 | P33: =IF(B10="Dap.ED117AEPPEPDMT10",O33,0) -> 0 | Q33: =IF(B13="Dap.ED117AEPPEPDMT10",O33,0) -> 0
N34: Dap.L340AE01PPEPDMT30 | O34: 25 | P34: =IF(B10="Dap.L340AE01PPEPDMT30",O34,0) -> 0 | Q34: =IF(B13="Dap.L340AE01PPEPDMT30",O34,0) -> 0
N35: Dap.L109AE02PPEPDMT16 | O35: 40 | P35: =IF(B10="Dap.L109AE02PPEPDMT16",O35,0) -> 0 | Q35: =IF(B13="Dap.L109AE02PPEPDMT16",O35,0) -> 0
N36: Dap.ED213AEPPEPDMT20 | O36: 50 | P36: =IF(B10="Dap.ED213AEPPEPDMT20",O36,0) -> 0 | Q36: =IF(B13="Dap.ED213AEPPEPDMT20",O36,0) -> 0
N37: PUR | O37: 210 | P37: =IF(B10="PUR",O37,0) -> 0 | Q37: =IF(B13="PUR",O37,0) -> 0
N38: ALU | O38: 23.1 | P38: =IF(B10="ALU",O38,0) -> 0 | Q38: =IF(B13="ALU",O38,0) -> 0
N39: Dibond | O39: 23 | P39: =IF(B10="Dibond",O39,0) -> 0 | Q39: =IF(B13="Dibond",O39,0) -> 0
N40: BLEI | O40: 29 | P40: =IF(B10="BLEI",O40,0) -> 0 | Q40: =IF(B13="BLEI",O40,0) -> 0
N41: CHROME | O41: 4.9 | P41: =IF(B10="CHROME",O41,0) -> 0 | Q41: =IF(B13="CROME",O41,0) -> 0
N42: STAHL | O42: 11.5 | P42: =IF(B10="STAHL",O42,0) -> 0 | Q42: =IF(B13="STAHL",O42,0) -> 0
N43: CHROMNICKELSTAHL | O43: 17 | P43: =IF(B10="CHROMNICKELSTAHL",O43,0) -> 0 | Q43: =IF(B13="CHROMNICKELSTAHL",O43,0) -> 17
N44: GUSS | O44: 12 | P44: =IF(B10="GUSS",O44,0) -> 0 | Q44: =IF(B13="GUSS",O44,0) -> 0
N45: GOLD | O45: 14.2 | P45: =IF(B10="GOLD",O45,0) -> 0 | Q45: =IF(B13="GOLD",O45,0) -> 0
N46: KUPFER | O46: 16.5 | P46: =IF(B10="KUPFER",O46,0) -> 0 | Q46: =IF(B13="KUPFER",O46,0) -> 0
N47: NICKEL | O47: 13.4 | P47: =IF(B10="NICKEL",O47,0) -> 13.4 | Q47: =IF(B13="NICKEL",O47,0) -> 0
N48: SILBER | O48: 18.9 | P48: =IF(B10="SILBER",O48,0) -> 0 | Q48: =IF(B13="SILBER",O48,0) -> 0
N49: BERYLLIUM | O49: 11.3 | P49: =IF(B10="BERYLLIUM",O49,0) -> 0 | Q49: =IF(B13="BERYLLIUM",O49,0) -> 0
N50: TITAN | O50: 8.6 | P50: =IF(B10="TITAN",O50,0) -> 0 | Q50: =IF(B13="TITAN",O50,0) -> 0
N51: BRONZE | O51: 7 | P51: =IF(B10="BRONZE",O51,0) -> 0 | Q51: =IF(B13="BRONZE",O51,0) -> 0
N52: MESSING | O52: 21 | P52: =IF(B10="MESSING",O52,0) -> 0 | Q52: =IF(B13="MESSING",O52,0) -> 0
N53: MAGNESIUM | O53: 24.8 | P53: =IF(B10="MAGNESIUM",O53,0) -> 0 | Q53: =IF(B13="MAGNESIUM",O53,0) -> 0
N54: MANGAN | O54: 21.7 | P54: =IF(B10="MANGAN",O54,0) -> 0 | Q54: =IF(B13="MANGAN",O54,0) -> 0
N55: ZINK | O55: 30.2 | P55: =IF(B10="ZINK",O55,0) -> 0 | Q55: =IF(B13="ZINK",O55,0) -> 0
N56: ZINKCYANID | O56: -18.1 | P56: =IF(B10="ZINKCYANID",O56,0) -> 0 | Q56: =IF(B13="ZINKCYANID",O56,0) -> 0
N57: WOLFRAM | O57: 4.5 | P57: =IF(B10="WOLFRAM",O57,0) -> 0 | Q57: =IF(B13="WOLFRAM",O57,0) -> 0
N58: PLATIN | O58: 8.8 | P58: =IF(B10="PLATIN",O58,0) -> 0 | Q58: =IF(B13="PLATIN",O58,0) -> 0
N59: ZINN | O59: 22 | P59: =IF(B10="ZINN",O59,0) -> 0 | Q59: =IF(B13="ZINN",O59,0) -> 0
N60: BETON | O60: 10 | P60: =IF(B10="BETON",O60,0) -> 0 | Q60: =IF(B13="BETON",O60,0) -> 0
N61: KIESBETON | O61: 11 | P61: =IF(B10="KIESBETON",O61,0) -> 0 | Q61: =IF(B13="KIESBETON",O61,0) -> 0
N62: GASBETON | O62: 11 | P62: =IF(B10="GASBETON",O62,0) -> 0 | Q62: =IF(B13="GASBETON",O62,0) -> 0
N63: TON | O63: 7 | P63: =IF(B10="TON",O63,0) -> 0 | Q63: =IF(B13="TON",O63,0) -> 0
N64: STEIN | O64: 7 | P64: =IF(B10="STEIN",O64,0) -> 0 | Q64: =IF(B13="STEIN",O64,0) -> 0
N65: ZIEGELSTEIN | O65: 5 | P65: =IF(B10="ZIEGELSTEIN",O65,0) -> 0 | Q65: =IF(B13="ZIEGELSTEIN",O65,0) -> 0
N66: KLINKER | O66: 7 | P66: =IF(B10="KLINKER",O66,0) -> 0 | Q66: =IF(B13="KLINKER",O66,0) -> 0
N67: KERAM.FLIESEN | O67: 6 | P67: =IF(B10="KERAM.FLIESEN",O67,0) -> 0 | Q67: =IF(B13="KERAM.FLIESEN",O67,0) -> 0
N68: SANDSTEIN | O68: 12 | P68: =IF(B10="SANDSTEIN",O68,0) -> 0 | Q68: =IF(B13="SANDSTEIN",O68,0) -> 0
N69: KALKSANDSTEIN | O69: 8.5 | P69: =IF(B10="KALKSANDSTEIN",O69,0) -> 0 | Q69: =IF(B13="KALKSANDSTEIN",O69,0) -> 0
N70: PORZELAN | O70: 2.2 | P70: =IF(B10="PORZELAN",O70,0) -> 0 | Q70: =IF(B13="PORZELAN",O70,0) -> 0
N71: BASALT | O71: 9 | P71: =IF(B10="BASALT",O71,0) -> 0 | Q71: =IF(B13="BASALT",O71,0) -> 0
N72: GIPS | O72: 25 | P72: =IF(B10="GIPS",O72,0) -> 0 | Q72: =IF(B13="GIPS",O72,0) -> 0
N73: DOLOMIT | O73: 8 | P73: =IF(B10="DOLOMIT",O73,0) -> 0 | Q73: =IF(B13="DOLOMIT",O73,0) -> 0
N74: TRAVERTIN | O74: 7 | P74: =IF(B10="TRAVERTIN",O74,0) -> 0 | Q74: =IF(B13="TRAVERTIN",O74,0) -> 0
N75: GLAS | O75: 8 | P75: =IF(B10="GLAS",O75,0) -> 0 | Q75: =IF(B13="GLAS",O75,0) -> 0
N76: QUARZGLAS | O76: 0.5 | P76: =IF(B10="QUARZGLAS",O76,0) -> 0 | Q76: =IF(B13="QUARZGLAS",O76,0) -> 0
N77: DIAMANT | O77: 1.18 | P77: =IF(B10="DIAMANT",O77,0) -> 0 | Q77: =IF(B13="DIAMANT",O77,0) -> 0
N78: SILIZIUM | O78: 2.6 | P78: =IF(B10="SILIZIUM",O78,0) -> 0 | Q78: =IF(B13="SILIZIUM",O78,0) -> 0
N79: MELAMINHARZ | O79: 50 | P79: =IF(B10="MELAMINHARZ",O79,0) -> 0 | Q79: =IF(B13="MELAMINHARZ",O79,0) -> 0
N80: PHENOLHARZ | O80: 40 | P80: =IF(B10="PHENOLHARZ",O80,0) -> 0 | Q80: =IF(B13="PHENOLHARZ",O80,0) -> 0
N81: MDF | O81: 6.8 | P81: =IF(B10="MDF",O81,0) -> 0 | Q81: =IF(B13="MDF",O81,0) -> 0
N82: AHORN längs FAS. | O82: 6.4 | P82: =IF(B10="AHORN längs FAS.",O82,0) -> 0 | Q82: =IF(B13="AHORN längs FAS.",O82,0) -> 0
N83: AHORN quer FAS. | O83: 48.4 | P83: =IF(B10="AHORN quer FAS.",O83,0) -> 0 | Q83: =IF(B13="AHORN quer FAS.",O83,0) -> 0
N84: BUCHE längs FAS. | O84: 6 | P84: =IF(B10="BUCHE längs FAS.",O84,0) -> 0 | Q84: =IF(B13="BUCHE längs FAS.",O84,0) -> 0
N85: BUCHE quer FAS. | O85: 47.6 | P85: =IF(B10="BUCHE quer FAS.",O85,0) -> 0 | Q85: =IF(B13="BUCHE quer FAS.",O85,0) -> 0
N86: EICHE längs FAS. | O86: 3.4 | P86: =IF(B10="EICHE längs FAS.",O86,0) -> 0 | Q86: =IF(B13="EICHE längs FAS.",O86,0) -> 0
N87: EICHE quer FAS. | O87: 28 | P87: =IF(B10="EICHE quer FAS.",O87,0) -> 0 | Q87: =IF(B13="EICHE quer FAS.",O87,0) -> 0
N88: FICHTE längs FAS. | O88: 5.4 | P88: =IF(B10="FICHTE längs FAS.",O88,0) -> 0 | Q88: =IF(B13="FICHTE längs FAS.",O88,0) -> 0
N89: FICHTE quer FAS. | O89: 34.1 | P89: =IF(B10="FICHTE quer FAS.",O89,0) -> 0 | Q89: =IF(B13="FICHTE quer FAS.",O89,0) -> 0
N90: MAHAG längs FAS. | O90: 3.6 | P90: =IF(B10="MAHAG längs FAS.",O90,0) -> 0 | Q90: =IF(B13="MAHAG längs FAS.",O90,0) -> 0
N91: MAHAG quer FAS. | O91: 40.4 | P91: =IF(B10="MAHAG quer FAS.",O91,0) -> 0 | Q91: =IF(B13="MAHAG quer FAS.",O91,0) -> 0
N92: TANNE längs FAS. | O92: 3.7 | P92: =IF(B10="TANNE längs FAS.",O92,0) -> 0 | Q92: =IF(B13="TANNE längs FAS.",O92,0) -> 0
N93: TANNE quer FAS. | O93: 34.1 | P93: =IF(B10="Tanne quer Fas.",O93,0) -> 0 | Q93: =IF(B13="TANNE quer FAS.",O93,0) -> 0
O95: Summ | P95: =SUM(P2:P94) -> 13.4 | Q95: =SUM(Q2:Q94) -> 17
N98: Dehnung Mat 1 | O98: =D10*E10*F10*H10 -> 0
N99: Dehnung Mat 2 | O99: =D13*E10*F10*H10 -> 0
N100: Diff. | O100: =+O98-O99 -> 0 | P100: =IF(O100<0,O100*-1,O100) -> 0

Sheet Erklärung-Schichtdicke
A1: Mit diesem Tool können Sie die Ausdehnungen und Ausdehnungsdifferenzen von verschiedensten Materialien annähernd einfach berechnen.
A2: 1) Wählen Sie im Fächer Ausdehnung aus der Auswahlliste " Material 1" und " Material 2" die Materialpaarung.
A3: 2) Geben Sie die grösstmögliche Temperaturabweichung von der Verklebetemperatur in Grad Celsius ein.
A4: Beispiel 1: Sie kleben bei +20°C. Die Verklebung wird später im Einsatzbereich bis max. + 60°C warm. Temperaturunterschied = 40°C.
A5: Beispiel 2: Sie kleben bei +25°C. Die Verklebung wird später im Einsatz bis max. -30°C kalt.Temperaturunterschied = 55°C.
A6: 3) Geben Sie die lineare Länge der verklebten Bauteile unter "Verklebte Baulänge" in Millimeter ein.
A7: 4) Unter Ausdehnungsdifferenz erhalten Sie die totale Differenz der linearen Ausdehnungen der beiden gewählten Materialien.
A8: Kann sich die Ausdehnung in beide Richtungen gleichmässig verteilen, können sie die totale Ausdehnungsdifferenz auf beiden Seiten halbieren.
D10: Material dehnt sich gleichmässig auf alle Seiten von der Mitte her nach aussen aus.
A12: Beispiel A: | J12: Material 1
K13: ∆T | L13: =Ausdehnung!$F$10 -> 0
K14: Länge mm | L14: =Ausdehnung!H10 -> 2000
K15: Totale Ausdehnungsdifferenz | M15: =$A$30 -> 0
K16: Klebstoff
K17: Material 2
C22: =B30 -> 0 | D22: ½ Ausdehnungsdifferenz | J22: =B30 -> 0 | L22: ½ Ausdehnungsdifferenz
C25: Benötigte Klebstoffschichtdicken in mm
C26: =HYPERLINK(B30)/0.02 -> 0 | D26: 1) 2% Dehnungsaufnahme | G26: Z.B. für harte Epoxi wie : | J26: 2214 | K26: DP100 | P26: TG~ 100°C
A27: Totale | B27: ½ | C27: =HYPERLINK(B30)/0.05 -> 0 | D27: 2) 5% Dehnungsaufnahme | G27: Z.B. für flexible 2K Klebstoffe wie: | J27: DP125 | K27: DP190 | L27: 2216B/A | M27: DP609 | N27: DP8805 | O27: DP8405 | P27: TG~ 20°C
A28: Ausdehnungs- | B28: Ausdehnungs- | C28: =HYPERLINK(B30)/0.03 -> 0 | D28: 3) 3% Dehnungsaufnahme | G28: Z.B. für zähel. Klebstoffe wie: | J28: DP410 | K28: DP460 | L28: DP490 | M28: 9323B/A | N28: 7240B/A | O28: DP8010 | P28: TG~60°C
A29: differenz | B29: differenz | C29: =HYPERLINK(B30)/0.2 -> 0 | D29: 4) 20% Dehnungsaufnahme | G29: Z.B. für 1K PU Kleb/Dichtmasse | J29: 540 | K29: 760 | P29: TG~0°C
A30: =HYPERLINK(Ausdehnung!F16) -> 0 | B30: =A30/2 -> 0 | C30: =HYPERLINK(B30)/0.25 -> 0 | D30: 5) 25% Dehnungsaufnahme | G30: Z.B. 1K Silikon/ PU/ MS Dichtmasse | K30: 320 | L30: 3200 | P30: TG~0°C
C31: =HYPERLINK(B30)/3 -> 0 | D31: 6) 300 % Dehnungsaufnahme | G31: Z.B. VHB | K31: 4956
A32: Diese Werte gelten als Anhaltpunkte für Temperaturen unterhalb des TG Wertes. Bei Temperaturen über ca. 20°C des TG Wertes gilt die Dehnungsaufnahme ~ x2.
B34: Das Material kann sich nicht auf beide Seiten ausdehnen, d.h. es muss mit der totalen Ausdehnungsdifferenz gerechnet werden.
A36: Beispiel B: | J36: Material 1
K37: ∆T | L37: =L13 -> 0
K38: Länge mm | L38: =L14 -> 2000
L39: Totale Ausdehnungsdifferenz
M40: =M15 -> 0
K41: Klebstoff
L42: Material 2
A43: Bei 300 % Dehnungsaufnahme der VHB Bänder kann die totale Ausdehnungsdifferenz durch 3 geteilt werden. Sie erhalten so die minimal benötigte Dicke des Bandes.
C45: Totale Ausdehnungsdifferenz | E45: =$A$30 -> 0 | F45: =E45/3 -> 0 | G45: mm Mindestdicke, wenn Ausdehnung nur auf einer Seite möglich
A46: Vorsicht: VHB Bänder können 50% ihrer Dicke mit Unebenheiten der Materialien "kompensieren". Dies bedingt oft die Wahl eines dickeren Klebebandes als es die Ausdehnungsdifferenzen verlangen
A47: VHB Klebebänder haben eine Dickentoleranz je nach Produktelinie von bis zu +-10 bis 15%. Es wird daher empfohlen, die jeweils dickere Variante zu wählen.

Sheet TDS
A1: DP100 | B1: MPa Zugscherfestigkeit | O1: N/cm Schälfestigkeit
A2: Prüftemperatur | B2: Alu | C2: Stahl | D2: V2A Stahl | E2: Kupfer | F2: Messing | G2: PVC | H2: ABS | I2: PMMA | J2: PC | K2: GFK 1 | L2: CFK 2 | M2: PP | N2: HDPE | O2: Alu | P2: Stahl | Q2: GFK 1 | R2: Glasfaserverstärkte Kunststoffe
A3: -55°C | B3: 6 | Q3: CFK 2 | R3: Kohlefaserverstärkte Kunststoffe
A4: +24°C | B4: 7 | C4: 7 | D4: 6 | E4: 7 | F4: 5 | G4: 2 | H4: 4 | I4: 2 | J4: 2 | K4: 7 | O4: 3.6 | P4: 3.6 | Q4: * Kohäsionsbruch im Werkstoff
A5: +80°C | B5: 4
A6: +120°C
A7: +180°C
A9: DP125 | B9: MPa Zugscherfestigkeit | O9: N/cm Schälfestigkeit
A10: Prüftemperatur | B10: Alu | C10: Stahl | D10: V2A Stahl | E10: Kupfer | F10: Messing | G10: PVC | H10: ABS | I10: PMMA | J10: PC | K10: GFK 1 | L10: CFK 2 | M10: PP | N10: HDPE | O10: Alu | P10: Stahl
A11: -55°C | B11: 24 | O11: 5
A12: +24°C | B12: 24 | C12: 13 | G12: 5 | H12: 4 | I12: 4 | J12: 6 | K12: 10 | O12: 64
A13: +80°C | B13: 3 | O13: 0.4
A14: +120°C
A15: +180°C
A17: 2214 | B17: MPa Zugscherfestigkeit | O17: N/cm Schälfestigkeit
A18: Prüftemperatur | B18: Alu | C18: Stahl | D18: V2A Stahl | E18: Kupfer | F18: Messing | G18: PVC | H18: ABS | I18: PMMA | J18: PC | K18: GFK 1 | L18: CFK 2 | M18: PP | N18: HDPE | O18: Alu | P18: Stahl
A19: -55°C | B19: 20 | C19: 20 | O19: 4 | P19: 32
A20: +24°C | B20: 31 | C20: 18 | O20: 9 | P20: 89
A21: +80°C | B21: 31 | C21: 14 | O21: 16 | P21: 60
A22: +120°C | B22: 10 | C22: 2 | O22: 27 | P22: 48
A23: +180°C | B23: 2.7 | C23: 1 | O23: 2 | P23: 2
A25: 2216 B/A | B25: MPa Zugscherfestigkeit | O25: N/cm Schälfestigkeit
A26: Prüftemperatur | B26: Alu | C26: Stahl | D26: V2A Stahl | E26: Kupfer | F26: Messing | G26: PVC | H26: ABS | I26: PMMA | J26: PC | K26: GFK 1 | L26: CFK 2 | M26: PP | N26: HDPE | O26: Alu | P26: Stahl
A27: -55°C | B27: 14 | O27: 3.6
A28: +24°C | B28: 17 | O28: 45
A29: +80°C | B29: 2 | O29: 3.6
A30: +120°C
A31: +180°C
A33: DP609 | B33: MPa Zugscherfestigkeit | O33: N/cm Schälfestigkeit
A34: Prüftemperatur | B34: Alu | C34: Stahl | D34: V2A Stahl | E34: Kupfer | F34: Messing | G34: PVC | H34: ABS | I34: PMMA | J34: PC | K34: GFK 1 | L34: CFK 2 | M34: PP | N34: HDPE | O34: Alu | P34: Stahl
A35: -40°C | B35: 28 | G35: 2 | H35: 3 | I35: 4 | J35: 5 | K35: 11 | M35: 3.9 | O35: 11
A36: +24°C | B36: 24 | G36: 6 | H36: 5 | I36: 3 | J36: 10 | K36: 8 | M36: 3.7 | O36: 70
A37: +80°C | B37: 3 | G37: 0.7 | H37: 2 | I37: 0.5 | J37: 2 | K37: 1.2 | M37: 0.8 | O37: 5
A39: DP8405 | B39: MPa Zugscherfestigkeit | O39: N/cm Schälfestigkeit
A40: Prüftemperatur | B40: Alu | C40: Stahl | D40: V2A Stahl | E40: Kupfer | F40: Messing | G40: PVC | H40: ABS | I40: PMMA | J40: PC | K40: GFK 1 | L40: CFK 2 | M40: PP | N40: HDPE | O40: Alu | P40: Stahl
A41: -40°C
A42: +24°C | B42: 28 | C42: 25 | G42: 12 | H42: 7 | I42: 9 | J42: 9 | K42: 6 | L42: 29 | O42: 88
A43: +80°C | B43: 8
A45: DP8805 | B45: MPa Zugscherfestigkeit | O45: N/cm Schälfestigkeit
A46: Prüftemperatur | B46: Alu | C46: Stahl | D46: V2A Stahl | E46: Kupfer | F46: Messing | G46: PVC | H46: ABS | I46: PMMA | J46: PC | K46: GFK 1 | L46: CFK 2 | M46: PP | N46: HDPE | O46: Alu | P46: Stahl
A47: -40°C
A48: +24°C | B48: 24 | C48: 23 | G48: 12 | H48: 8 | I48: 7 | J48: 6 | K48: 5 | L48: 20 | O48: 44
A49: +80°C | B49: 4
A51: DP190 | B51: MPa Zugscherfestigkeit | O51: N/cm Schälfestigkeit
A52: Prüftemperatur | B52: Alu | C52: Stahl | D52: V2A Stahl | E52: Kupfer | F52: Messing | G52: PVC | H52: ABS | I52: PMMA | J52: PC | K52: GFK 1 | L52: CFK 2 | M52: PP | N52: HDPE | O52: Alu | P52: Stahl
A53: -55°C | B53: 11
A54: +24°C | B54: 18 | C54: 12 | D54: 11 | E54: 9 | F54: 8 | G54: 6* | H54: 7* | I54: 7* | J54: 10* | K54: 10* | O54: 21 | P54: 44
A55: +80°C | B55: 3
A56: +120°C
A57: +180°C
A59: DP410 | B59: MPa Zugscherfestigkeit | O59: N/cm Schälfestigkeit
A60: Prüftemperatur | B60: Alu | C60: Stahl | D60: V2A Stahl | E60: Kupfer | F60: Messing | G60: PVC | H60: ABS | I60: PMMA | J60: PC | K60: GFK 1 | L60: CFK 2 | M60: PP | N60: HDPE | O60: Alu | P60: Stahl
A61: -55°C
A62: +24°C | B62: 25 | C62: 19 | F62: 18 | G62: 3 | H62: 4 | J62: 3 | K62: 37 | O62: 96
A63: +80°C
A64: +120°C
A65: +180°C
A67: DP460 | B67: MPa Zugscherfestigkeit | O67: N/cm Schälfestigkeit
A68: Prüftemperatur | B68: Alu | C68: Stahl | D68: V2A Stahl | E68: Kupfer | F68: Messing | G68: PVC | H68: ABS | I68: PMMA | J68: PC | K68: GFK 1 | L68: CFK 2 | M68: PP | N68: HDPE | O68: Alu | P68: Stahl
A69: -55°C | B69: 31 | D69: 17.6
A70: +24°C | B70: 31 | C70: 19 | D70: 106.8 | E70: 71.6
A71: +80°C | B71: 5 | D71: 32
A72: +120°C
A73: +180°C
A75: DP490 | B75: MPa Zugscherfestigkeit | O75: N/cm Schälfestigkeit
A76: Prüftemperatur | B76: Alu | C76: Stahl | D76: V2A Stahl | E76: Kupfer | F76: Messing | G76: PVC | H76: ABS | I76: PMMA | J76: PC | K76: GFK 1 | L76: CFK 2 | M76: PP | N76: HDPE | O76: Alu | P76: Stahl
A77: -55°C | B77: 17
A78: +24°C | B78: 26 | G78: 3 | H78: 3 | I78: 4 | J78: 3 | K78: 30 | L78: 36 | O78: 74
A79: +80°C | B79: 12
A80: +120°C | B80: 2
A81: +180°C
A83: 9323B/A | B83: MPa Zugscherfestigkeit | O83: N/cm Schälfestigkeit
A84: Prüftemperatur | B84: Alu | C84: Stahl | D84: V2A Stahl | E84: Kupfer | F84: Messing | G84: PVC | H84: ABS | I84: PMMA | J84: PC | K84: GFK 1 | L84: CFK 2 | M84: PP | N84: HDPE | O84: Alu | P84: Stahl
A85: -55°C | B85: 24-38 | O85: 10
A86: +24°C | B86: 36-40 | O86: 47-58
A87: +80°C | B87: 22-25 | O87: 10-54
A88: +120°C | B88: 4
A89: +150°C | B89: 2
A91: 7240B/A FR | B91: MPa Zugscherfestigkeit | O91: N/cm Schälfestigkeit
A92: Prüftemperatur | B92: Alu | C92: Stahl | D92: V2A Stahl | E92: Kupfer | F92: Messing | G92: PVC | H92: ABS | I92: PMMA | J92: PC | K92: GFK 1 | L92: CFK 2 | M92: PP | N92: HDPE | O92: Alu | P92: Stahl
A93: -55°C | B93: 19
A94: -40°C | B94: 21
A95: +23°C | B95: 22 | C95: 17 | F95: 18 | K95: 6 | L95: 23 | O95: 44
A96: +70°C | B96: 14
A97: +100°C | B97: 5
A98: +150°C | B98: 2
A100: 540 | B100: MPa Zugscherfestigkeit | O100: N/cm Schälfestigkeit
A101: Prüftemperatur | B101: Alu | C101: Stahl | D101: V2A Stahl | E101: Kupfer | F101: Messing | G101: PVC | H101: ABS | I101: PMMA | J101: PC | K101: GFK 1 | L101: CFK 2 | M101: PP | N101: HDPE | O101: Alu | P101: Stahl
A102: -55°C
A103: +24°C | B103: 1.65 | C103: 1.57 | G103: 0.8 | H103: 1.8 | I103: 0.03 | J103: 1.6 | K103: 2
A104: +80°C
A106: 760 | B106: MPa Zugscherfestigkeit | O106: N/cm Schälfestigkeit
A107: Prüftemperatur | B107: Alu | C107: Stahl | D107: V2A Stahl | E107: Kupfer | F107: Messing | G107: PVC | H107: ABS | I107: PMMA | J107: PC | K107: GFK 1 | L107: CFK 2 | M107: PP | N107: HDPE | O107: Alu | P107: Stahl
A108: -55°C
A109: +24°C | B109: 1.8
A110: +80°C
A112: Silikon 320 | B112: MPa Zugscherfestigkeit | O112: N/cm Schälfestigkeit
A113: Prüftemperatur | B113: Alu | C113: Stahl | D113: V2A Stahl | E113: Kupfer | F113: Messing | G113: PVC | H113: ABS | I113: PMMA | J113: PC | K113: GFK 1 | L113: CFK 2 | M113: PP | N113: HDPE | O113: Alu | P113: Stahl
A114: -55°C
A115: +24°C | B115: 0.4
A116: +80°C
A118: Silikon 3200 | B118: MPa Zugscherfestigkeit | O118: N/cm Schälfestigkeit
A119: Prüftemperatur | B119: Alu | C119: Stahl | D119: V2A Stahl | E119: Kupfer | F119: Messing | G119: PVC | H119: ABS | I119: PMMA | J119: PC | K119: GFK 1 | L119: CFK 2 | M119: PP | N119: HDPE | O119: Alu | P119: Stahl
A120: -55°C
A121: +24°C | B121: 2
A122: +80°C
A124: VHB 4956 | B124: MPa Zugscherfestigkeit | O124: N/cm Schälfestigkeit
A125: Prüftemperatur | B125: Alu | C125: Stahl | D125: V2A Stahl | E125: Kupfer | F125: Messing | G125: PVC | H125: ABS | I125: PMMA | J125: PC | K125: GFK 1 | L125: CFK 2 | M125: PP | N125: HDPE | O125: Alu | P125: Stahl
A126: -55°C
A127: +24°C | B127: 0.4 | O127: 35
A128: +80°C
A130: DP8010 | B130: MPa Zugscherfestigkeit | O130: N/cm Schälfestigkeit
A131: Prüftemperatur | B131: Alu | C131: Stahl | D131: V2A Stahl | E131: Kupfer | F131: Messing | G131: PVC | H131: ABS | I131: PMMA | J131: PC | K131: GFK 1 | L131: CFK 2 | M131: PP | N131: HDPE | O131: PE | P131: Stahl
A132: -29°C | B132: 24
A133: +23°C | B133: 20 | C133: 13 | E133: 13 | G133: 12 | H133: 8 | I133: 9 | J133: 3 | K133: 5 | L133: 19 | M133: 7 | N133: 6 | O133: *
A134: +49°C | B134: 7
A135: +66°C | B135: 4
A136: +82°C | B136: 2.5

Sheet Kunststofftabelle
A1: Created by Pit Rütimann | B1: Chemische Bezeichnung | C1: Thermoplast | D1: Duromer | E1: Elastomer | F1: Abkürzung | G1: Verkaufsbezeichnung | H1: Eigenschaft | I1: In Flamme | J1: Nach Flamme | K1: Geruch | L1: Oberflächen- energie mN/ m | M1: Ausdehnung x 10-6 / °C | O1: Mögliche Vorbehandlung | Q1: Besonderes | S1: Mögliche Produkte
A3: Vinyl
B4: Polyvinylchlorid ( hart/ weich) | C4: x | F4: PVC | G4: Trovidur, Vestolit, Hostalit, Vinnol, Vinoflex, Astralit, Forex, weich PVC=Vinyl, Mipolam, Kunstleder, | H4: Thermoplast in allen Farben, gegen Wasser, Säuren, Alkohol, Benzin und Öle beständig | I4: Brennt, schmilzt, tropft wenig, russt. Die Flamme ist bei Anwesenheit von Kupfer grün. | J4: Erlischt. Weich- PVC kann weiter brennen. (Weichmacher) | K4: Stechend nach Salzsäure | L4: 39-40 | M4: 70/80....150/210 | O4: Isopropylalkohol, Scotch- Brite 7447 | Q4: Lastwagenplachen, Schwimmbadabdeckungen Früher für Flachdachabdichtungen Vorsicht: Weichmacherwanderung Recycling Nr. 03 | S4: Klebstoff EPX DP 609, 610, Jet- Weld 31/ 230 , VHB 4936,4941, 4646, 4611 Primer 2262 / 4297als Weichmacherbremse
B5: Polyvinyl- idenechloride | C5: x | F5: PVDC | L5: 40
B6: Polyvinylalcohol | C6: x | F6: PVAL | G6: Alcotex, Lemac | L6: 37
B7: Polyvivylfluoride (Tedlar) | C7: x | F7: PVF | L7: 28
B8: Polyvinylacetate | C8: x | F8: PVA(C ) | G8: Ponal, Pakoll | L8: 33
B9: Ethylvinyl- acetate | C9: x | F9: EVA | L9: 32...34 | M9: 160/200 | Q9: Ausgangsmaterial für Schmelzklebstoffe wie Jet- Melt
B10: Polyvinylformal | C10: x | F10: PVFM | L10: 39
B11: Polyvinyl- butyral | C11: x | F11: PVB | L11: 38
B12: Polyvinylchloride- acetate | C12: x | F12: PVCA
B13: Polyvinylidene- fluoride | C13: x | F13: PVDF | L13: 25
A16: Polyolefine
B17: Polyethylen | C17: LD x | D17: HD x | F17: PE | G17: Lupolen, Hostalen, Vestolen, Alathon, Ampacet,Durethene, Dylan, Fortiflex, Petrothene, Trolen, Crown Seal, Visqueen | H17: Wachsartige bis harte Konsistenz. Wetterfest, nimmt kein Wasser auf. Bei normal Temperaturen beständig gegen Säuren und Laugen | I17: Brennt mit gelber Flamme mit blauem Hintergrund, schmilzt, tropft, wird klar wenn gescholzen | J17: Brennt weiter, schwach leuchtend | K17: Riecht nach Kerzenwachs | L17: 31 | M17: 200-250 | O17: Isopropylalkohol Abflammen Corona Plasma Primer 4298 UV Primer 94 | Q17: Spielzeuge, Verpackungen, Plastiksäcke. LD kann mit Fingernagel verkratzt werden In Verschiedenen Dichten er- hältlich: LD= Low Density = niedrige Dichte HD = High Density = hohe Dichte Recycling Nr.PE-HD 02 Recycling Nr.PE-LD 04 | S17: Für strukturelle Verbindungen EPX DP 8005 Für temporäre Verbindungen Jet- Melt 3748
B18: Polypropylen | C18: x | F18: PP | G18: VestolenP, HostalenP, Novolen, Aerotuf, Celmar, Hypac, Impolene, Oleplate, Poly-pro, Profax, Propylux, TrolenPPVectra | H18: Wachsartige bis harte Konsistenz. Wetterfest, nimmt kein Wasser auf. Bei normal Temperaturen beständig gegen Säuren und Laugen.Härtere Oberfläche als PE | I18: Brennt mit gelber Flamme mit blauem Hintergrund, schmilzt, tropft, wird klar wenn gescholzen | J18: Brennt weiter, schwach leuchtend | K18: Riecht nach Kerzenwachs | L18: 29 | M18: 150 | O18: Isopropylalkohol Abflammen Corona Plasma Primer 4298 UV Primer 94 | Q18: Spielzeuge, als Blend mit anderen Kunststoffen wie ABS / PA für Automobilteile wie Zierleisten und Stossstangen, Maschinengehäuseteile Recycling Nr.05 | S18: Für strukturelle Verbindungen EPX DP 8005 Für temporäre Verbindungen Jet- Melt 3748
B19: Expandiertes Polypropylen | C19: x | F19: EPP | H19: Wasseraufnahme: Nach 1 Tag 0.5-1.5 Vol % Nach 7 Tagen 1.0-3.5 Vol % | I19: Flammhemmend | M19: 100
B20: Polypropylen Atactic | C20: x | F20: APP | L20: 28
B21: Polypropylen Isotactic | C21: x | F21: IPP | L21: 30,1
B24: Chemische Bezeichnung | C24: Thermoplast | D24: Duromer | E24: Elastomer | F24: Abkürzung | G24: Verkaufsbezeichnung | H24: Eigenschaft | I24: In Flamme | J24: Nach Flamme | K24: Geruch | L24: Oberflächen- energie mN/ m | M24: Ausdehnung x 10-6 / °C | O24: Mögliche Vorbehandlung | Q24: Besonderes | S24: Mögliche Produkte
A25: Acrylate
B26: Polymethyl-methacrylat | C26: x | F26: PMMA | G26: Acrylglas, Acrylite, Plexiglas, Resartglas, Degalan, Cryllex, Sumiplex, Perspex, Lucite | H26: Gute Witterungs und Alterungsbeständigkeit. Beständig gegen Säuren und Laugen mittlerer Konzentration sowie Öle und Benzin, jedoch nicht gegenüber Alkohol und Benzol | I26: Brennt knisternd mit gelber Flamme, schmilzt, russt nicht, tropft nicht | J26: Brennt weiter | K26: Riecht fruchtartig, süsslich | L26: 33..(39)..44 | M26: 85 | O26: Reinbenzin Abflammen Corona Plasma Primer 4298 UV Primer 94 | Q26: Vorsicht: Nicht mit Alkohol entfetten. Nicht mit Aceton entfetten. Nur mit Reinbenzin oder Waschbenzin entfetten | S26: Transparente Produkte: VHB 4905/ 10/ 15/ 18/ 4614 EPX DP 610
B27: Polyethyl- methacrylate | C27: x | F27: PEMA | L27: 31,5 | O27: siehe PMMA
B28: Poly(n-propyl- methacrylate) | C28: x | F28: PPMA | L28: 32 | O28: siehe PMMA
B29: Poly(n-butyl- methacrylate | C29: x | F29: PBMA | L29: 32 | O29: siehe PMMA
B30: Poly(n-hexyl- methacrylate | C30: x | L30: 27,5 | O30: siehe PMMA
B31: Polyoctyl- methacrylate | C31: x | L31: 23,5 | O31: siehe PMMA
B32: Polylauryl- methacrylate | C32: x | L32: 21,3 | O32: siehe PMMA
B33: Polystearyl- methacrylate | C33: x | L33: 20.8 | O33: siehe PMMA
B34: Polyphenyl- methacrylate | C34: x | F34: PFMA | L34: 35 | O34: siehe PMMA
B35: Polybenzyl- methacrylate | C35: x | L35: 36 | O35: siehe PMMA
B36: Polyhydroxyethyl- methacrylate | C36: x | L36: 37 | O36: siehe PMMA
B37: Polydimethylamin- oethylmethacrylat | C37: x | L37: 36 | O37: siehe PMMA
B38: Poly(t-butylamino-ethylenmethacryl | C38: x | L38: 34 | O38: siehe PMMA
B39: Polyethylacrylate | C39: x | L39: 33 | O39: siehe PMMA
B40: Polybutylacrylate | C40: x | L40: 31 | O40: siehe PMMA
B41: Polyethylhexyl- acrylate | C41: x | L41: 31 | O41: siehe PMMA
B42: Polymethacrylo- nitril | C42: x | L42: 39
A45: Silikon
B46: Silicone polydimethylsiloxane | E46: x | F46: SI | H46: Wird als Dichtmassen eingesetzt | L46: 20,7 | M46: 20/50 | S46: Nur Silikon klebt auf Silikon
B47: Silicone polydiethyl- siloxane | E47: x | L47: 20/22
B48: Silicone polymethyl- phenylsiloxane | E48: x | L48: 20/ 22
B50: Chemische Bezeichnung | C50: Thermoplast | D50: Duromer | E50: Elastomer | F50: Abkürzung | G50: Verkaufsbezeichnung | H50: Eigenschaft | I50: In Flamme | J50: Nach Flamme | K50: Geruch | L50: Oberflächen- energie mN/ m | M50: Ausdehnung x 10-6 / °C | O50: Mögliche Vorbehandlung | Q50: Besonderes | S50: Mögliche Produkte
A52: Fluor
B53: Polytetra- fluorethylene | C53: x | F53: PTFE | G53: Teflon, Hostaflon | H53: Stark abweisend, gut chemikalienbeständig | L53: 18 | M53: 100 | O53: Ätzen | Q53: Druckwalzen, Pfannen | S53: EPX DP 8010
B54: Tetrafluor-ethylene/ chlorotrifluorethylene | C54: x | F54: TFE/CTFE (60/40) | L54: 24
B55: Polychlorotrifluor- ethylene | C55: x | F55: PTFCE, PCTFE,CFM | G55: KEL-F | L55: 31 | M55: 60
B56: Ethylene/ trifluor- ethylene copolymer | C56: x | F56: E/TFE 50/50 | L56: 26,5 | M56: 40
B57: Polytrifluor-ethylen | C57: x | F57: PFE | L57: 22 | M57: 80
A60: Rubber / Gummi
B61: Natural Rubber Naturgummi | E61: x | F61: NR | L61: 36
B62: Polyisoprene | E62: x | F62: IR | L62: 31
B63: Polybutadiene | E63: x | F63: BR | L63: 32
B64: Butadiene- styrene- rubber | E64: x | F64: PSB SBK SBR GR-S
B65: Polyisobutylene | E65: x | F65: PIM IM | L65: 27
B66: Chloroprene | E66: x | F66: CR | G66: Polychloroprene | L66: 32 | Q66: Scotch-Weld 10,1300,FB2000
B67: Neoprene | E67: x | L67: 38
B68: Butadieneacryl- nitril rubber | E68: x | F68: BAN
B69: Styrene butadiene- rubber | E69: x | F69: SBR | G69: Buna | Q69: Scotch-Weld 34, Spray 77
A72: Harze
B73: Epoxi | D73: x | F73: EP | G73: Araldite, Epoxin, Lekutherm,Epon, Epotuf, EpiRez, Epodite, Epoxical, Polyset | L73: 44/ 47 | M73: 11/ 35 | Q73: Basismaterial für 2K Scotch-Weld Klebstoffe | S73: 3M Klebstoffe auf Epoxibasis= EPX DP 100/105/110/125/190/410/460/490
B74: Ureaformaldehyde | F74: UF | G74: Resamin, Resopal | L74: 61 | M74: 50/60
B75: Phenolformalde hyde | F75: PF | G75: Bakelite, Trolitan | M75: 30/ 50
B76: Melaminformalde- hyde | F76: MF | G76: Resamin Melan, Resopal, Formica | M76: 50/ 60
B77: Polyamideepi- chlorohydrin | F77: PA/ CO, CHR | L77: 52
B78: Ungesättigte Polyester | D78: x | F78: UP | G78: Leguval, Vestopal, Palatal, Polyleit
B80: Chemische Bezeichnung | C80: Thermoplast | D80: Duromer | E80: Elastomer | F80: Abkürzung | G80: Verkaufsbezeichnung | H80: Eigenschaft | I80: In Flamme | J80: Nach Flamme | K80: Geruch | L80: Oberflächen- energie mN/ m | M80: Ausdehnung x 10-6 / °C | O80: Mögliche Vorbehandlung | Q80: Besonderes | S80: Mögliche Produkte
A82: Cellulose
B83: Ethylcellulose | F83: EC
B84: Celluloseacatat | F84: CA | G84: Cellidor, Cellophane, Celluloid, Rayon | L84: 39 | M84: 120
B85: Cellulose | L85: 35,5/ 42
B86: Cellulosenitrate | F86: CN | L86: 38
B87: Celluloseacetatebutyrate | F87: CAB | G87: Cellidor | L87: 34 | M87: 120
A90: Metalle
B91: Aluminium | F91: AL | L91: 1200 | M91: 23
B92: Blei | F92: PB | L92: 610 | M92: 29
B93: Chrome | F93: CR | L93: 2400 | M93: 8,4
B94: Stahl Rostfrei | L94: 2550 | M94: 12/17
B95: Eisen | F95: FE | M95: 9,9/ 12
B96: Gold | F96: Au | L96: 1550 | M96: 14
B97: Kupfer | F97: Cu | L97: 1850 | M97: 16,6 / 17,6
B98: Nickel | F98: Ni | L98: 2450 | M98: 13
B99: Silber | F99: Ag | L99: 1250 | M99: 20
B100: Titanium | F100: Ti | L100: 2050 | M100: 8/10
B101: Bronze | M101: 5/7
B102: Messing | M102: 19,1/21,2
B103: Magnesium rein | F103: Mg | M103: 25,2
B104: Magnesium Legierungen | M104: 26,1/28,8
B105: Zink | F105: Zn | L105: 1020 | M105: 29
B106: Wolfram | F106: W | L106: 6800 | M106: 4,5
B107: Platin | F107: Pt | M107: 9
B108: Zinn | F108: Sn | L108: 710 | M108: 27
B111: Chemische Bezeichnung | C111: Thermoplast | D111: Duromer | E111: Elastomer | F111: Abkürzung | G111: Verkaufsbezeichnung | H111: Eigenschaft | I111: In Flamme | J111: Nach Flamme | K111: Geruch | L111: Oberflächen- energie mN/ m | M111: Ausdehnung x 10-6 / °C | O111: Mögliche Vorbehandlung | Q111: Besonderes | S111: Mögliche Produkte
A112: Andere Materialien
B113: Beton | M113: 7/ 14
B114: Backstein | M114: 5/ 7
B115: Stein | M115: 5/ 7
B116: Glas | L116: 400 | M116: 5/ 11
B117: Keramik | L117: 38/ 40
A120: Amide
B121: Polycaproamid | C121: x | F121: PA 6 | G121: Ultramid, Durethan, Vestamid, Trogamid, Nylon, Capran, Dymetrol, Zytel, Namex, X-Tal, Grilon, Sustamid | H121: Schlagzäh, hart, formstabil, abriebfest.Beständig gegen Alkalien und organische Lösungsmittel, nicht jedoch gegen konzentrierte Säuren und Laugen | I121: Brennt mit bläulicher Flamme, Tropfen ziehen Fäden, schmilzt | J121: Brennt weiter mit bläulicher, tropfender Flamme | K121: Riecht nach verbranntem Horn | L121: 42 | M121: 80 | O121: Isopropylalkohol Abflammen Corona Plasma Primer 4298 UV Primer 94 | Q121: Sportartikel, Skischuhe, techn. Zahnräder | S121: Je nach Anwendung und Anforderung EPX DP 810, DP8005
B122: Polyhexamethylenadipamide | C122: x | F122: PA 6,6 | L122: 40/ 46 | M122: 80
B123: Polyheptamethyl- pimelamide | C123: x | F123: PA 7,7 | L123: 43
B124: Polyoctamethylen- suberamide | C124: x | F124: PA 8,8 | L124: 34
B125: Polynonamethylen azelamide | C125: x | F125: PA 9,9 | L125: 36
B126: Polydecamethylen sebacamide | C126: x | F126: PA10,10 | L126: 32
B127: Polyundecylamide | C127: x | F127: PA 11 | L127: 33 | M127: 130
B131: Chemische Bezeichnung | C131: Thermoplast | D131: Duromer | E131: Elastomer | F131: Abkürzung | G131: Verkaufsbezeichnung | H131: Eigenschaft | I131: In Flamme | J131: Nach Flamme | K131: Geruch | L131: Oberflächen- energie mN/ m | M131: Ausdehnung x 10-6 / °C | O131: Mögliche Vorbehandlung | Q131: Besonderes | S131: Mögliche Produkte
A132: Andere Polymere
B133: Acryl-Butadien-Styrol | C133: x | F133: ABS | G133: Novodur, Vestodur, Terulan, Abtrene, Abson, Cycolac, Dylel, Lustran, Royalite, Tybrene, Cycolin | H133: Hart bis zähelastisch einstellbar, schlagzäh auch bei tiefen Temp. | I133: Brennt mit schwarzen Rauch, starke Russflocken | J133: Brennt weiter | K133: Riecht süsslich | L133: 33- 37 | M133: 60 / 110 | O133: Isopropylalkohol Reinbenzin Scotchbrite, Corona, Plasma Abflammen, Primer 4289UV, 94 | Q133: Lego, Spielzeuge, Maschinenblenden Recycling Nr.07 Andere | S133: Je nach Anwendung und Anforderung
B134: Polyoxymethylen | C134: x | F134: POM | G134: Delrin, Hostaform | H134: Sehr hart, schlagzäh und abriebfest. Gute Beständigkeit gegen alle üblichen Lösungsmittel und Hitze | I134: Schwierig anzuzünden, brennt mit farbloser Flamme, nachtropfend | J134: Brennt weiter mit kaum sichtbarer, heller, blauer Flamme | K134: Vorsicht: riecht stechend nach Formaldehyd | L134: 36 | M134: 90/110 | O134: Isopropylalkohol Abflammen Corona Plasma Primer 4298 UV Primer 94 | Q134: Wird oft im Werkzeugbau eingesetzt. Farbe meistens weiss. Oberfläche fühlt sich seifig an | S134: Ohne spezielle Vorbehandlung nicht gut verklebbar
B135: Polyethylen- Polybutylen- terephthalat,......................................... .....................................Polyethylenteraphtalat Glycol | C135: x | D135: x | F135: PET PBT ........ ....................................................PETG | G135: Polyester, Alkanex, Arothane, Laminac, Muitron, Poiylite Resins, Mylar, Dacron, Kodel, Vycron, Valor, Valox...........................................Barlo Vectan | H135: Sehr hart, abriebfest und dimensionstabil, gegen Lösungsmittel beständig. Wenig beständig gegen Wasser, Säuren oberhalb 70°C. Polyesterharze besitzen dagegen duro- merische Eigenschaften, | I135: Schwer entflammbar, brennt mit gelblich- oranger Flamme, schwach russend, tropfend | J135: Brennt weiter mit gelber tropfender Flamme | K135: Riecht süsslich aromatisch | L135: 36...............41.......... 43 | M135: 68............................70 | O135: Isopropylalkohol Primer 4289 UV 94 | Q135: Getränkeflaschen Recycling Nr.01 ........................................................................................................................... Ersatz für Plexiglas da auch transparent aber besser zum Bohren und Verarbeiten | S135: Je nach Anwendung und Anforderung .............................................................................................................................Cyanacrylat oder DP105
B136: Polystyrene/ Polystyrol | C136: x | F136: PS | G136: Vestyron, Hostyren, Polyfort, Polyflam, Vestoran, Luran | H136: Eigentlich glasklar, kann gefärbt werden, hart und spröde, Nimmt kein Wasser auf, Alterungsbeständig. Beständig gegen Säuren+ Laugen, Alkohol und Öle, nicht jedoch gegen die meisten Lösungsmittel. | I136: Brennt mit gelber, leuchtender, stark russender Flamme, schmilzt | J136: Brennt weiter | K136: Süsslich, ähnlich wie Leuchtgas | L136: 32,8.....43 | M136: 70 | O136: Isopropylalkohol, Scotchbrite 7447 | Q136: Nicht mit Aceton Entfetten, bricht oder schmilzt sofort. Wird oft zum Tiefziehen eingesetzt. Besteckschubladen u.s.w. Vorsicht: Keine Lösemittelklebstoffe mit Aceton einsetzen, kein Industriereiniger, Recycling Nr.06 | S136: Dispersionen, Jet oder Low- Melt, EPX Produkte, Klebebänder unbedenklich
B137: Expandiertes Polystyrol | C137: x | F137: EPS | G137: Styrophor, Sagex | H137: Wasseraufnahme: Nach 1 Tag 0.5-1.5 Vol % Nach 7 Tagen 1.5-3.0 Vol % | I137: Schmilzt | J137: Flammhemmend | K137: Süsslich | M137: 50-70 | Q137: In vielen Farben erhältlich. Wird als Isolationsmaterial eingesetzt oder als Füllmittel für Verpackungen | S137: Dispersionen, Jet oder Low- Melt, EPX Produkte, Klebebänder unbedenklich
B138: Expandiertes Polystyrol/Polyphenylenoxid | C138: x | F138: EPS-PPO | H138: Wasseraufnahme: >2.4 Vol % | I138: Schmilzt | J138: Flammhemmend | K138: Süsslich | M138: 40-50 | Q138: beige, schwarz
B139: Polycarbonat | C139: x | F139: PC | G139: Macrolon, Celstran, Lexan, Merlon, Tuffac Cycoloy | H139: Transparent bis leicht gelblich, hart, schlagfest, formstabil. Witterungsbeständig. Beständig gegen Mineralsäuren, Kohlenwasserstoffe, Öle, Fette, nicht jedoch gegen Alkalien | I139: Schwer entflammbar, brennt leuchtend, russend, verkohlt und zeigt Blasenbildung | J139: Brennt manchmal weiter mit leichter Russentwick-lung | K139: Geruchlos oder leicht phenolartig | L139: 33- 37 | M139: 60/ 70 | O139: Isopropylalkohol, Scotchbrite 7447 Primer 4298 UV oder 94 | Q139: Gute Resultate mit Primer 4298UV und Primer 94 Recycling Nr.07 Andere | S139: Je nach Anwendung und Anforderung
B140: Polyimid | F140: PI | G140: Kapton | L140: 42/ 50 | M140: 50/63 | Q140: Sehr hoch Temperaturbeständig | S140: Gibt es auch als Klebebandträger in den Produkten 5413 / 5419
B141: Polysulfon | C141: x | F141: PSU | M141: 54
B142: Styreneacrylnitril | C142: x | F142: SAN | L142: 43 | M142: 80 | Q142: Wird oft im Lebensmittelbereich für Maschinenteile wie Kaffemaschinen u.s.w. eingesetzt
B143: Polyacrylnitril | C143: x | F143: PAN | L143: 44/ 50
B144: Polyphenyl- enoxide | C144: x | F144: PPO | G144: Noryl
B146: Chemische Bezeichnung | C146: Thermoplast | D146: Duromer | E146: Elastomer | F146: Abkürzung | G146: Verkaufsbezeichnung | H146: Eigenschaft | I146: In Flamme | J146: Nach Flamme | K146: Geruch | L146: Oberflächen- energie mN/ m | M146: Ausdehnung x 10-6 / °C | O146: Mögliche Vorbehandlung | Q146: Besonderes | S146: Mögliche Produkte
B148: Poly (ethylenoxyde)-diol | L148: 43
B149: Poly 1H,1H-pentadecafluorethyl- acrylate | L149: 10,4
B150: Poly (propyleneoxide)- diol | L150: 32
B151: Polyepichloro- hydrin | F151: CO | L151: 35
B152: Fluoriertes ethylen- propylen copolymer | F152: FEP | L152: 18,8 | M152: 80
B153: Polyhexafluoropropylene | L153: 16
B154: Polyurethan | D154: x | F154: PUR | G154: Baydur, Castomer, Celthane, Clocel, Estane, Isofoam, Nopcofoam, Polyfoam, Uralane, Uraligte, Urefoam | L154: 42 / 50 | M154: 210 | Q154: Bleibt flexibel auch bei niederen Temperaturen | S154: 3M Klebstoffe auf PU BasisEPX DP 609, DP 610, Jet-Weld, Scotch Seal 5300, Scotch Grip5005
B155: Polyphenylen-sulfid | C155: x | F155: PPS | G155: Tedur, Fortron, Petcoal, Ryton Torelina | H155: Sehr gut chemisch beständig gegen div. Kraftstoffe, Öle, Ethanol, Frigen, Xylol | L155: ? | M155: 0.5x10-4°K

Sheet Zusätzliche neue Materialien
A1: PA66 | B1: 30 längsrichtung | D1: 65 querrichtung

Sheet Material Ausdehnungen
A1: Materialien | B1: Wärmeausdehnungkoeffizient 10xhoch-6/°K
A2: PTFE | B2: 100
A3: PTFCE | B3: 60
A4: PP | B4: 150
A5: PE | B5: 250
A6: PMMA | B6: 85
A7: Corean | B7: 39
A8: Forex 1-4mm | B8: 56
A9: Forex 5-19mm | B9: 66
A10: PVC U hart | B10: 100
A11: PVC P weich | B11: 200
A12: EVA | B12: 200
A13: SI | B13: 50
A14: EPOXY | B14: 35
A15: CA | B15: 120
A16: PA6,PA6,6 | B16: 80
A17: PI,Kapton | B17: 60
A18: ABS | B18: 110
A19: ABS Verchromt | B19: 30
A20: ABS/PC Verchromt | B20: 30
A21: SAN | B21: 80
A22: BASF ASA Luran S 778 T | B22: 80
A23: POM | B23: 110
A24: PS | B24: 70
A25: EPS | B25: 70
A26: EPS-PPO | B26: 50
A27: EPP | B27: 100
A28: PC | B28: 92
A29: PET | B29: 70
A30: Dap.ED230HPPPEPDMT20 | B30: 52
A31: Dap.EH104AEPPEPDMT10 | B31: 68
A32: Dap.L134HPPPEPDMT15 | B32: 55
A33: Dap.ED117AEPPEPDMT10 | B33: 80
A34: Dap.L340AE01PPEPDMT30 | B34: 25
A35: Dap.L109AE02PPEPDMT16 | B35: 40
A36: Dap.ED213AEPPEPDMT20 | B36: 50
A37: PUR | B37: 210
A38: ALU | B38: 23.1
A39: Dibond | B39: 23
A40: BLEI | B40: 29
A41: CHROME | B41: 4.9
A42: STAHL | B42: 11.5
A43: CHROMNICKELSTAHL | B43: 17
A44: GUSS | B44: 12
A45: GOLD | B45: 14.2
A46: KUPFER | B46: 16.5
A47: NICKEL | B47: 13.4
A48: SILBER | B48: 18.9
A49: BERYLLIUM | B49: 11.3
A50: TITAN | B50: 8.6
A51: BRONZE | B51: 7
A52: MESSING | B52: 21
A53: MAGNESIUM | B53: 24.8
A54: MANGAN | B54: 21.7
A55: ZINK | B55: 30.2
A56: ZINKCYANID | B56: -18.1
A57: WOLFRAM | B57: 4.5
A58: PLATIN | B58: 8.8
A59: ZINN | B59: 22
A60: BETON | B60: 10
A61: KIESBETON | B61: 11
A62: GASBETON | B62: 11
A63: TON | B63: 7
A64: STEIN | B64: 7
A65: ZIEGELSTEIN | B65: 5
A66: KLINKER | B66: 7
A67: KERAM.FLIESEN | B67: 6
A68: SANDSTEIN | B68: 12
A69: KALKSANDSTEIN | B69: 8.5
A70: PORZELAN | B70: 2.2
A71: BASALT | B71: 9
A72: GIPS | B72: 25
A73: DOLOMIT | B73: 8
A74: TRAVERTIN | B74: 7
A75: GLAS | B75: 8
A76: QUARZGLAS | B76: 0.5
A77: DIAMANT | B77: 1.18
A78: SILIZIUM | B78: 2.6
A79: MELAMINHARZ | B79: 50
A80: PHENOLHARZ | B80: 40
A81: MDF | B81: 6.8
A82: AHORN längs FAS. | B82: 6.4
A83: AHORN quer FAS. | B83: 48.4
A84: BUCHE längs FAS. | B84: 6
A85: BUCHE quer FAS. | B85: 47.6
A86: EICHE längs FAS. | B86: 3.4
A87: EICHE quer FAS. | B87: 28
A88: FICHTE längs FAS. | B88: 5.4
A89: FICHTE quer FAS. | B89: 34.1
A90: MAHAG längs FAS. | B90: 3.6
A91: MAHAG quer FAS. | B91: 40.4
A92: TANNE längs FAS. | B92: 3.7
A93: TANNE quer FAS. | B93: 34.1

Sheet DP Übersicht
A2: 3M Scotch Weld EPX DP Doppelkartuschen Klebstoffsysteme Produktebezeichnung | B2: Basis | C2: Farbe | D2: Verarbeitungszeit min. | E2: Handfest min. (0.35MPa) | F2: Viskosität, Fliessverhalten | G2: Zug- Scherfestigkeit in MPa (23°C) | H2: Schälfestigkeit (N/cm) | I2: Elastizität; f=flexibel, h=hart, z=zähelastisch, s= sehr flexibel | J2: Endfestigkeit 23°C h | K2: Auch für niedrige Oberflächenspannung | L2: Schlagfestigkeit | M2: Geruchsneutral | N2: Strukturelle Festigkeit von -°C bis +°C | O2: Eingebaute Distanzhalter | P2: 50ml Qaud, Epoxi EPX/ D50Q | Q2: 50ml Acrylat 810 EPX/D810 | R2: 400ml Epoxi EPX/D400 | S2: 38ml (8005/8010/MD38 orange | T2: 265ml (8005 /8010) 8005/MD 265 orange | U2: Kurzd400ml, EPX/MD802380 | V2: 45ml Acrylat Neu EPX/D45 orange | W2: 490ml Acrylat Neu EPX/D490 orange | X2: 200ml 7270 Ampel 7270/D20 | Y2: 200/400ml, 7270/DQ (quadro) blau | Z2: 50ml 1:1/2:1 (PLA 050-01) EPX/VK | AA2: 37ml (PLA 050-02-3M) EPX/VOR420 | AB2: 37ml 10:1 8005/VK | AC2: 45ml 10:1 Lang EPX/V880 | AD2: Besonderes
A3: DP100 50ml | B3: EP | C3: transluszent | D3: 4 | E3: 15 | F3: dünnflüssig | G3: 9 | H3: 4 | I3: h | J3: 24 | M3: x | N3: -40/+80 | P3: x | Z3: x | AD3: Hartspröde
A4: DP105 50ml | B4: EP | C4: transparent | D4: 4 | E4: 20 | F4: dünnflüssig | G4: 14 | H4: 62 | I4: s | J4: 24 | L4: x | M4: x | N4: -55/+80 | P4: x | Z4: x | AD4: Shore D 39, sehr flexibel
A5: DP110 50/400ml | B5: EP | C5: translu/grau | D5: 9 | E5: 20 | F5: dickflüssig | G5: 18 | H5: 35 | I5: z | J5: 24 | L5: x | M5: x | N5: -40/+80 | P5: x | R5: x | Z5: x | AD5: Shore D 45 und 40% Dehnungsaufnahme für grau
A6: DP125 50ml | B6: EP | C6: grau | D6: 25 | E6: 2-3 | F6: mittelflüssig | G6: 24 | H6: 62 | I6: f | J6: 24 | L6: x | M6: x | N6: -50/+80 | P6: x | Z6: x
A7: DP190 50/400ml | B7: EP | C7: Transl/grau | D7: 90 | E7: 4-6 | F7: mittelflüssig | G7: 18 | H7: 21 | I7: f | J7: 24 | L7: x | M7: x | N7: -40/+80 | P7: x | R7: x | Z7: x
A8: DP270 50/400ml | B8: EP | C8: translu/schw. | D8: 70 | E8: 4-7 | F8: dünnflüssig | G8: 17 | H8: <4 | I8: h | J8: 48 | M8: x | N8: -55/+80 | P8: x | R8: x | Z8: x | AD8: Shore D 83
A9: DP3532 50ml | B9: PU | C9: hellbraun | D9: 7 | E9: 90 | F9: dickflüssig | G9: 15 | H9: 44 | I9: f | J9: 24 | L9: x | N9: -40/+80 | P9: x | Z9: x
A10: DP410 50/400ml | B10: EP | C10: beige | D10: 10 | E10: 30 | F10: thyxotrop | G10: 34 | H10: 100 | I10: z | J10: 24 | L10: x | M10: x | N10: -55/+80 | P10: x | R10: x | Z10: x
A11: DP460 50/400ml | B11: EP | C11: beige | D11: 60 | E11: 240 | F11: mittelflüssig | G11: 31 | H11: 107 | I11: z | J11: 168 | L11: x | M11: x | N11: -50/+100 | P11: x | R11: x | Z11: x
A12: DP490 50/400ml | B12: EP | C12: schwarz | D12: >90 | E12: 240 | F12: thyxotrop | G12: 30 | H12: 92 | I12: z | J12: 24 | L12: x | M12: x | N12: -50/+120 | P12: x | R12: x | Z12: x
A13: DP609 50ml | B13: PU | C13: hellbraun | D13: 9 | E13: 45 | F13: dickflüssig | G13: 14 | H13: 70 | I13: f | J13: 24 | L13: x | N13: -40/+80 | P13: x | Z13: x
A14: DP610 50ml | B14: PU | C14: transparent | D14: 10 | E14: 120 | F14: dünnflüssig | G14: 23 | H14: 78 | I14: f | J14: 168 | L14: x | N14: -40/+80 | P14: x | Z14: x | AD14: nicht vergilbend
A15: DP7240FR 400ml | B15: EP | C15: schwarz | D15: 40 | E15: 360 | F15: thyxotrop | G15: 27 | H15: 36 | I15: z | J15: 24 | L15: x | M15: x | N15: -55/+150 | O15: x | R15: x | AD15: selbstverlöschend, DIN 45545
A16: DP7270 200/400ml | B16: EP/A | C16: Ampel/grün | D16: 22 | E16: 4h/1MPa | F16: thyxotrop | G16: 25 | H16: 24 | I16: z | J16: 48 | K16: x | L16: x | M16: x | N16: -40/+80 | O16: x | X16: x | Y16: x | AD16: Shore D 78
A17: DP7271 200/400ml | B17: EP/A | C17: grün | D17: 12 | E17: 60 | F17: thyxotrop | G17: 26 | H17: 24 | I17: z | J17: 120 | K17: x | L17: x | M17: x | N17: -40/+120
A18: DP760 50ml | B18: EP | C18: weiss | D18: 45-60 | E18: 240-360 | F18: thyxotrop | G18: 29 | H18: 60 | I18: z | J18: 24 | M18: x | N18: -50/+230 | P18: x | Z18: x | AD18: höchste Temp. beständigkeit
A19: DP8005 38/265ml | B19: A | C19: gelb | D19: 2.5 | E19: 30 | F19: mittelflüssig | G19: 14 | H19: 28 | I19: z | J19: 24 | K19: x | L19: x | N19: -55/+100 | O19: x | S19: x | T19: x | AB19: x | AD19: Für PE/PP
A20: DP8010 38/265ml | B20: A | C20: gelb | D20: 10 | E20: 120 | F20: mittelflüssig | G20: 10 | H20: 28 | I20: z | J20: 24 | K20: x | L20: x | N20: -40/+80 | O20: x | T20: x | V20: x | AD20: Für PE/PP
A21: DP804 50ml | B21: A | C21: transparent | D21: 2.5 | E21: 4 | F21: dünnflüssig | G21: 9 | I21: h | J21: 0.6 | K21: x | N21: 0/+100 | Q21: x | Z21: x | AD21: Shore D 67, nur für Innenanwendungen
A22: DP810 50/400ml | B22: A | C22: grün | D22: 8 | E22: 12 | F22: dünnflüssig | G22: 30 | H22: 52 | I22: z | J22: 6 | K22: x | L22: x | N22: -40/+80 | Q22: x | U22: x | Z22: x
A23: DP8405 45/490ml | B23: A | C23: grün | D23: 5 | E23: 14 | F23: thyxotrop | G23: 28 | H23: 88 | I23: z | J23: 24 | K23: x | L23: x | N23: -40/+80 | O23: x | V23: x | W23: x | AC23: x
A24: DP8805 45/490ml | B24: A | C24: blau | D24: 5 | E24: 7 | F24: thyxotrop | G24: 24 | H24: 44 | I24: z | J24: 24 | K24: x | L24: x | M24: x | N24: -40/+80 | O24: x | V24: x | W24: x | AC24: x
A25: DP8810 45/490ml | B25: A | C25: blau | D25: 10 | E25: 18 | F25: thyxotrop | G25: 23 | H25: 53 | I25: z | J25: 24 | K25: x | L25: x | M25: x | N25: -40/+80 | O25: x | V25: x | W25: x | AC25: x
A26: DP2216 43ml | B26: EP | C26: translu/grau | D26: 90 | E26: 480-640 | F26: mittelflüssig | G26: 16 | H26: 45 | I26: f | J26: 168 | L26: x | M26: x | N26: -55/+80 | P26: x | AA26: x | AD26: USP Class VI, Medizin/ FDA
P27: Mischdüsen | Z27: Vor.kolben

Sheet Mengenberechnung
A1: Theoretische Verbrauchswerte
A2: Nassauftrag
B3: Eingabefeld
A4: Länge in mm | B4: 280 | D4: Fläche | E4: quadratisch = Länge, Breite, Schichtdicke, Anzahl Teile
A5: Breite in mm | B5: 25 | D5: =SUM(B4*B5/1000000) -> 0.007
A6: Rund / Ø mm | B6: 0 | D6: =SUM(B6*B6*3.14/4)/1000000 -> 0 | E6: Rondellen = Ø mm, Schichtdicke, Anzahl Teile
A7: Schichtdicke mm | B7: 0.2
A8: Raupenlänge m | B8: 0 | D8: Raupe | E8: Raupendurchmesser Ø mm, Raupenlänge m
A9: Anzahl Teile | B9: 150
A11: Total in m2 | B11: =SUM(D5*B9)+(D6*B9) -> 1.05
A12: Total Liter | B12: =SUM(B11*B7)+(B11*B8*1000) -> 0.21 | D12: Eingabefelder
D13: Preis | E13: Rabatt | F13: Netto / Stk. | G13: Umsatz
A14: Stk. 20 ml | B14: =SUM(B12/0.02) -> 10.5 | D14: 0 | E14: 0 | F14: =ROUND(D14*(1-E14)*2,1)/2 -> 0 | G14: =SUM(B14*F14) -> 0 | H14: Cyanacrylate
A15: Stk. 38 ml Kart. | B15: =SUM(B12/0.038) -> 5.526315789 | D15: 0 | E15: 0 | F15: 0 | G15: 0 | H15: EPX DP8005/8010
A16: Stk. 45 ml Kart. | B16: =SUM(B12/0.045) -> 4.666666667 | D16: 0 | E16: 0 | F16: 0 | G16: 0 | H16: EPX DP8805/8810NS
A17: Stk. 50 ml Kart. | B17: =SUM(B12/0.05) -> 4.2 | D17: 0 | E17: 0 | F17: 0 | G17: 0 | H17: EPX
A18: Stk. 120 ml Gebinde | B18: =SUM(B12/0.12) -> 1.75 | D18: 0 | E18: 0 | F18: 0 | G18: 0 | H18: Primer 4298UV
A19: Stk. 150 ml Tube | B19: =SUM(B12/0.15) -> 1.4 | D19: 0 | E19: 0 | F19: 0 | G19: 0 | H19: Safety Walk Edge Seal/ 2084
A20: Stk. 236 ml Büchse | B20: =SUM(B12/0.236) -> 0.8898305085 | D20: 0 | E20: 0 | F20: 0 | G20: 0 | H20: Primer 94
A21: Stk. 237 ml Büchse | B21: =SUM(B12/0.237) -> 0.8860759494 | D21: 0 | E21: 0 | F21: 0 | G21: 0 | H21: 3950 Sealer
A22: Stk. 250 ml Tube | B22: =SUM(B12/0.25) -> 0.84 | D22: 0 | E22: 0 | F22: 0 | G22: 0 | H22: 2216 B / A
A23: Stk. 265 ml Kart. | B23: =SUM(B12/0.265) -> 0.7924528302 | D23: 0 | E23: 0 | F23: 0 | G23: 0 | H23: EPX 8000er
A24: Stk. 280 ml Kart. | B24: =SUM(B12/0.28) -> 0.75 | D24: 0 | E24: 0 | F24: =ROUND(D24*(1-E24)*2,1)/2 -> 0 | G24: =SUM(B24*F24) -> 0 | H24: 3200 Silikon
A25: Stk. 295 ml Kart. | B25: =SUM(B12/0.295) -> 0.7118644068 | D25: 0 | E25: 0 | F25: 0 | G25: 0 | H25: Hybr. 760, PU 30,31,100,230
A26: Stk. 310 ml Kart. | B26: =SUM(B12/0.31) -> 0.6774193548 | D26: 0 | E26: 0 | F26: 0 | G26: 0 | H26: Powerline 540,560, Silikon 320
A27: Stk. 380 ml Kart. | B27: =SUM(B12/0.38) -> 0.5526315789 | D27: 0 | E27: 0 | F27: 0 | G27: 0 | H27: EPX GT
A28: Stk. 400 ml Kart. | B28: =SUM(B12/0.4) -> 0.525 | D28: 0 | E28: 0 | F28: 0 | G28: 0 | H28: EPX
A29: Stk. 490ml Kart. | B29: =SUM(B12/0.49) -> 0.4285714286 | D29: 0 | E29: 0 | F29: 0 | G29: 0 | H29: EPX DP8805/8810NS
A30: Stk. 500 ml Büchse | B30: =SUM(B12/0.5) -> 0.42 | D30: 0 | E30: 0 | F30: 0 | G30: 0 | H30: Primer 2262H
A31: Stk. 600 ml Sachet | B31: =SUM(B12/0.6) -> 0.35 | D31: 0 | E31: 0 | F31: 0 | G31: 0 | H31: 540, 560
A32: Stk. 1l | B32: =SUM(B12/1) -> 0.21 | D32: 0 | E32: 0 | F32: 0 | G32: 0 | H32: Kontaktklebstoffe
A33: Stk. 1.6 l Büchse | B33: =SUM(B12/1.6) -> 0.13125 | D33: 0 | E33: 0 | F33: 0 | G33: 0 | H33: 2216 B/A Kit
A34: Stk. 18,9 l | B34: =SUM(B12/18.9) -> 0.01111111111 | D34: 0 | E34: 0 | F34: 0 | G34: 0 | H34: 2216 B/A Kit
A35: Stk. 20 l Kessel | B35: =SUM(B12/20) -> 0.0105 | D35: 0 | E35: 0 | F35: 0 | G35: 0 | H35: Kontaktklebstoffe
A36: Stk. 200 l Fass | B36: =SUM(B12/200) -> 0.00105 | D36: 0 | E36: 0 | F36: 0 | G36: 0 | H36: Kontaktklebstoffe
A38: Theoretische | B38: Schichtdicke
A39: Richtwerte | B39: in mm
A40: Primer 2262H/9348 | B40: 0.05
A41: Primer 94 / 4298 UV | B41: 0.015
A42: CA SI Gel | B42: 0.25 | D42: max.0.5
A43: CA | B43: 0.05 | D43: max.0.1
A44: 2K Klebstoffe | B44: 0.05 - 0.15 | D44: optimale Klebstoffschichtdicke
A45: DP8805/8810 | B45: 0.25 | D45: Glaskugeln Abstandhalter
A46: Sealer 3950 | B46: 0.2 | D46: ca.400m
A47: Kontaktklebstoffe | B47: 0.15 | D47: ca.7m2 | E47: Lösemittelhaltige
A48: Safety-Walk Sealer | B48: 1.2 | D48: ca. 30m
A49: Schmelzklebstoffe | B49: Quadrack 1 Stange = ca. 3.2m mit Ø 3 mm Raupe. 5 Kg = ca. 166 Stangen= 530m
A50: Spray | B50: 74, 76, 80, 90 ca. 4 m2. // 75, 77 ca. 12 m2
